Cogmind - Beta 14 *** ADVENTURER MODE // 2025.03.14 @ 08:51:28 // Winter2019/RPGLIKE Player: Gallgagger Result: Destroyed by as-68440 with Assembled Rifle Performance ------------- Evolutions (3) 1500 Regions Visited (11) 2200 Robots Destroyed (228) 1140 Value Destroyed (10257) 10257 Prototype IDs (18) 360 Alien Tech Used (0) 0 Bonus (5138) 5138 TOTAL SCORE: 20595 Bonus ------- High Alert Combat Kills 2244 Follower Combat Kills 1029 Entered Garrisons 400 Destroyed Z-Imprinter 1000 Triggered Deep Caves Wall 500 Acquired ECA 300 Friendly Fire -335 Cogmind --------- Core Integrity 0/650 Matter 290/300 Energy 103/180 System Corruption 0% Temperature Cool (4) Movement Walking (90) Location -7/Deep Caves Parts ------- > --- POWER (2) -------- Zionite Light DM Reactor Meta Core > --- PROPULSION (4+3) - Improved Titanium Leg Zionite Composite Leg I Arachnoskeleton (+++) > --- UTILITY (10+1) --- Experimental Heat Sink Advanced Weight Redist. System Core Analyzer Armor Integrity Analyzer Weapon Cycler Improved Weapon Cycler Improved Shield Generator Hacking Suite Tractor Beam > --- WEAPON (3) ------- Field Lobotomy Kit > --- INVENTORY (4) ---- Improved Terrain Scanner Encrypted Comm Array Advanced ECM Suite Peak State ------------ > --- POWER ------------ Zionite Light DM Reactor Meta Core > --- PROPULSION ------- Improved Titanium Leg Zionite Composite Leg I Arachnoskeleton > --- UTILITY ---------- Experimental Heat Sink Advanced Weight Redist. System Core Analyzer Armor Integrity Analyzer Weapon Cycler Improved Weapon Cycler Zionite Weapon Casing Improved Shield Generator Hacking Suite Tractor Beam > --- WEAPON ----------- Storm Laser > --- INVENTORY -------- Improved Terrain Scanner Encrypted Comm Array Advanced ECM Suite V3-11A's Pendant [Rating: 119] Favorites ----------- Power Meta Core Engine Light Deuterium Engine Power Core Meta Core Reactor Zionite Light DM Reactor Propulsion Arachnoskeleton Leg Arachnoskeleton Wheel Wheel Hover Unit Hover Unit Flight Unit Improved Flight Unit Utility Scrap Shield Device Weapon Cycler Processor Armor Integrity Analyzer Hackware Hacking Suite Protection Scrap Shield Weapon Gauss Rifle Energy Gun Improved Arc Projector Energy Cannon Beam Cannon Ballistic Gun Gauss Rifle Ballistic Cannon Light Cannon Special Weapon Field Lobotomy Kit Impact Weapon Powered Hammer Build | -11 -10 -10 -8 -8 -8 -8 -7 -7 -7 -7 -7 ------- Run | Yrd Mat Sub Mat Gar Mat Gar Fac Low Low Zio Dee Slots Evolved 14 | 4 2 1 4 . 1 . . 1 . 1 . Power 1 | 1 . . . . . . . . . . . Propulsion 2 | 1 1 . . . . . . . . . . Utility 9 | 1 1 1 4 . 1 . . 1 . . . Weapon 2 | 1 . . . . . . . . . 1 . Parts Attached 83 | 7 18 5 24 4 4 3 1 4 6 2 5 Power 8 | 2 1 1 3 . . . . . . . 1 Engine 5 | 2 1 . 2 . . . . . . . . Core 2 | . . 1 1 . . . . . . . . Reactor 1 | . . . . . . . . . . . 1 Propulsion 17 | 2 8 1 3 . . 1 1 . . . 1 Treads . | . . . . . . . . . . . . Leg 5 | . . 1 1 . . 1 1 . . . 1 Wheel 3 | 2 1 . . . . . . . . . . Hover 8 | . 7 . 1 . . . . . . . . Flight 1 | . . . 1 . . . . . . . . Utility 29 | 1 6 2 8 3 2 . . 2 2 1 2 Device 16 | 1 1 1 4 2 1 . . 2 2 1 1 Storage . | . . . . . . . . . . . . Processor 2 | . . . 1 1 . . . . . . . Hackware 1 | . . . . . 1 . . . . . . Protection 10 | . 5 1 3 . . . . . . . 1 Artifact . | . . . . . . . . . . . . Weapon 29 | 2 3 1 10 1 2 2 . 2 4 1 1 Energy Gun 16 | 2 1 1 7 1 . . . 1 2 1 . Energy Cannon 1 | . 1 . . . . . . . . . . Ballistic Gun 9 | . . . 3 . 2 1 . 1 2 . . Ballistic Cannon 1 | . 1 . . . . . . . . . . Launcher . | . . . . . . . . . . . . Special Weapon 1 | . . . . . . . . . . . 1 Impact Weapon 1 | . . . . . . 1 . . . . . Slashing Weapon . | . . . . . . . . . . . . Piercing Weapon . | . . . . . . . . . . . . Special Melee Weapon . | . . . . . . . . . . . . Unidentified Prototypes 18 | . . 3 8 . 1 . . . . 1 5 Parts Lost 3 | . . 1 1 . . . . . . . 1 Power 1 | . . . 1 . . . . . . . . Propulsion . | . . . . . . . . . . . . Utility 2 | . . 1 . . . . . . . . 1 Weapon . | . . . . . . . . . . . . Highest Loss Streak 1 | . . 1 1 . . . . . . . 1 To Critical Strikes . | . . . . . . . . . . . . Average Slot Usage (%) 61 | . 99 53 52 60 62 63 63 60 62 59 61 Engine 5 | . 23 5 4 4 4 4 4 4 4 4 1 Core 4 | . . 5 5 4 4 4 4 4 4 4 4 Leg 7 | . . 3 7 9 9 9 9 8 8 8 10 Wheel 1 | . 18 . . . . . . . . . . Hover 1 | . 8 5 . . . . . . . . . Device 16 | . 14 11 12 18 18 18 18 17 18 20 23 Processor 5 | . . . 3 8 9 9 9 8 8 8 8 Hackware 2 | . . . . . 3 4 4 4 4 4 4 Protection 4 | . 11 5 6 4 4 4 4 4 4 4 1 Energy Gun 4 | . 13 2 3 4 4 4 4 4 4 4 3 Ballistic Gun 2 | . . . 5 4 4 4 4 3 4 . . Ballistic Cannon 1 | . 5 5 . . . . . . . . . Peak Build Rating 119 | 9 13 48 70 77 80 80 81 86 88 99 119 Average Rating 70 | 5 10 42 59 75 79 79 80 81 84 96 109 On Entrance 60 | . 9 13 48 70 77 80 80 81 82 87 99 Naked Turns . | . . . . . . . . . . . . Heaviest Build 57 | 15 20 38 44 45 45 45 45 45 49 57 56 Greatest Support 83 | 20 26 56 76 50 50 50 50 50 50 70 83 Greatest Overweight (x) 1 | . 1 1 . . . . . . . . . Average Overweight (x) . | . . . . . . . . . . . . Largest Inventory Capacity 4 | . . 2 2 3 3 3 3 4 4 4 4 Average Capacity 2 | . . 1 2 2 3 3 3 3 4 4 4 Most Carried 4 | . . 2 2 3 3 3 3 4 4 4 4 Average Carried 2 | . . 1 1 2 3 3 3 3 4 4 3 Final Capacity 4 | . . 2 2 3 3 3 3 4 4 4 4 Final Carried 4 | . . 2 2 3 3 3 3 4 4 4 3 Class Distribution -------------------- 40% | Hacker-Mutant 33% | Mutant 14% | Hacker-Gunner 10% | Scavenger-Mutant Dominant Class ---------------- Mutant | -10/Materials Mutant | -10/Subcaves Mutant | -8/Materials Mutant | -8/Garrison Hacker-Mutant | -8/Materials Hacker-Mutant | -8/Garrison Hacker-Mutant | -7/Factory Hacker-Mutant | -7/Lower Caves Hacker-Mutant | -7/Lower Caves Hacker-Gunner | -7/Zion Hacker-Gunner | -7/Deep Caves Resources | -11 -10 -10 -8 -8 -8 -8 -7 -7 -7 -7 -7 ----------- Run | Yrd Mat Sub Mat Gar Mat Gar Fac Low Low Zio Dee Matter Collected 3477 | 260 348 451 715 417 338 396 98 116 278 20 40 Remotely 2037 | . . . 347 412 338 388 98 116 278 20 40 Salvage Created 8940 | 74 1065 231 1756 1057 1258 1512 455 270 594 . 668 Parts 558 | 5 86 16 87 84 87 79 31 17 28 . 38 Haulers Intercepted 9 | . 2 . 6 . . . 1 . . . . Recyclers Shooed . | . . . . . . . . . . . . Parts Field Recycled . | . . . . . . . . . . . . Retrieved Matter . | . . . . . . . . . . . . Parts Self-Destructed 52 | . . 11 . . . . . 14 27 . . Prevented 38 | . . . . . . . . 10 28 . . Kills | -11 -10 -10 -8 -8 -8 -8 -7 -7 -7 -7 -7 ------- Run | Yrd Mat Sub Mat Gar Mat Gar Fac Low Low Zio Dee Combat Hostiles Destroyed 198 | . 33 12 29 32 26 26 6 8 12 . 14 Guns 145 | . 9 . 20 32 26 24 6 7 9 . 12 Cannons 30 | . 13 12 5 . . . . . . . . AOE 19 | . 10 . 3 . . 2 . 1 3 . . Classes Destroyed 21 | 1 7 2 4 2 1 . . . 1 . 3 Worker 5 | . 2 . 1 . 2 . . . . . . Builder 2 | . 1 . . . 1 . . . . . . Tunneler 3 | 3 . . . . . . . . . . . Hauler 9 | . 2 . 6 . . . 1 . . . . Recycler 6 | . 2 . 4 . . . . . . . . Operator 3 | . . . 1 . 1 . 1 . . . . Turret 2 | . . 2 . . . . . . . . . Watcher 6 | . 2 . . . 2 . 2 . . . . Swarmer 34 | . 9 3 3 8 2 . . 3 6 . . Grunt 89 | . 24 . 14 13 13 16 2 5 2 . . Brawler 6 | . . . 1 2 3 . . . . . . Duelist 4 | . . . . 2 1 1 . . . . . Protector 2 | . . . . . 2 . . . . . . Sentry 28 | . . . 7 4 5 8 2 . 2 . . Hunter 7 | . . . 4 . 1 1 1 . . . . Programmer 5 | . . . . 4 . . 1 . . . . Subdweller 9 | . . 9 . . . . . . . . . Z-Light 6 | . . . . . . . . . . . 6 Thief 2 | . . . . . . . . . 2 . . Assembled 4 | . . . . . . . . . . . 4 Golem 3 | . . . . . . . . . . . 3 Best Kill Streak 11 | 2 11 5 4 11 10 4 6 3 3 . 4 Combat Bots Only 11 | . 10 3 3 11 10 4 3 3 3 . 4 Max Kills in Single Turn 3 | 1 3 1 3 2 1 2 1 1 1 . 1 Gunslinging 1 | . . . . 1 . 1 . . . . . Exploded 3 | . 3 . 3 . . 1 . 1 1 . . Melee . | . . . . . . . . . . . . Uniques/NPCs Destroyed 1 | . . . . . . . . . . . 1 Z-Imprinter (-7/Deep Caves) Combat | -11 -10 -10 -8 -8 -8 -8 -7 -7 -7 -7 -7 -------- Run | Yrd Mat Sub Mat Gar Mat Gar Fac Low Low Zio Dee Hostile Shots Fired 994 | . 108 92 153 126 93 76 46 17 70 . 213 Missed 353 | . 42 35 65 31 32 23 20 7 22 . 76 Damage Taken 7155 | . 617 868 909 746 641 454 148 55 490 . 2227 Core 4557 | . 435 523 526 465 377 270 62 29 272 . 1598 Absorbed by Shields 1027 | . . . . 244 259 184 56 22 193 . 69 Redirected to Core 3788 | . 318 444 430 378 345 227 51 29 223 . 1343 Redirected to Shielding 148 | . . . . . . . . . . . 148 Ignored by Resistances 2936 | . 195 277 350 361 324 244 82 33 254 . 816 Core Remaining (%) 86 | 100 . 59 . . . 100 . . . . . Volleys Fired 645 | 7 76 91 92 111 75 78 22 16 48 . 29 Largest 2 | 2 2 2 2 2 2 2 2 2 2 . 1 Hottest 250 | 80 95 95 100 93 93 93 93 115 98 . 250 Shots Fired 1140 | 14 152 165 173 178 132 145 40 32 80 . 29 Gun 886 | 14 74 22 141 178 132 145 40 32 80 . 28 Cannon 253 | . 78 143 32 . . . . . . . . Launcher . | . . . . . . . . . . . . Special 1 | . . . . . . . . . . . 1 Kinetic 546 | . 42 87 113 87 70 68 22 12 45 . . Thermal 191 | . 36 78 49 . . . . . . . 28 Explosive . | . . . . . . . . . . . . Electromagnetic 402 | 14 74 . 11 91 62 77 18 20 35 . . Robot Hit Streak 43 | 11 22 41 38 36 30 43 24 13 30 . 22 Robot Miss Streak 7 | 1 4 1 2 2 1 1 2 5 1 . 7 Penetration Max 1 | . . . 1 1 1 1 1 1 1 . . Secondary Targets 23 | . 4 . 1 7 4 3 1 2 1 . . Max Gunslinging Chain 1 | . 1 . 1 1 1 1 1 1 1 . . Shots Hit Robots 870 | 12 112 89 150 130 109 109 33 27 71 . 28 Core Hits 461 | 3 51 24 69 61 60 58 22 17 33 . 63 Critical Kills 4 | . . . . 1 1 . . 1 1 . . Critical Parts Destroyed 6 | . . . 2 1 2 . . . 1 . . Critical Strikes 16 | . 3 1 4 2 3 . . 1 2 . . Burn 1 | . . . 1 . . . . . . . . Destroy 10 | . . . 2 2 3 . . 1 2 . . Blast 4 | . 2 1 1 . . . . . . . . Corrupt 1 | . 1 . . . . . . . . . . Melee Attacks . | . . . . . . . . . . . . Impact . | . . . . . . . . . . . . Slashing . | . . . . . . . . . . . . Piercing . | . . . . . . . . . . . . Sneak Attacks . | . . . . . . . . . . . . Combat Hostiles . | . . . . . . . . . . . . Follow-up Attacks . | . . . . . . . . . . . . Damage Inflicted 19405 | 187 2156 1521 2986 2653 2150 2151 619 524 1806 . 2652 Guns 15367 | 159 741 . 2381 2653 2111 1992 619 524 1535 . 2652 Cannons 2907 | . 880 1521 506 . . . . . . . . Explosions 1131 | 28 535 . 99 . 39 159 . . 271 . . Melee . | . . . . . . . . . . . . Ramming . | . . . . . . . . . . . . Kinetic 8890 | . 492 714 1812 1666 1365 1119 361 258 1103 . . Thermal 5864 | 28 923 807 985 . 39 159 . . 271 . 2652 Explosive . | . . . . . . . . . . . . Electromagnetic 4651 | 159 741 . 189 987 746 873 258 266 432 . . Impact . | . . . . . . . . . . . . Slashing . | . . . . . . . . . . . . Piercing . | . . . . . . . . . . . . Highest Corruption 9 | . 1 1 1 7 9 9 1 1 1 1 . Average Corruption 2 | . 1 1 1 3 8 9 1 1 1 1 . Corruption Purged . | . . . . . . . . . . . . Corruption Blocked . | . . . . . . . . . . . . Effects 116 | . 4 10 4 25 21 33 1 8 10 . . Message Errors 19 | . 1 2 . 5 3 4 1 1 2 . . Matter Fused 35 | . . 6 3 3 6 8 . 4 5 . . Heat Flow Errors 18 | . 3 1 . 4 4 6 . . . . . Energy Discharges 11 | . . . . 2 3 3 . 1 2 . . Parts Rejected 3 | . . . . . 1 1 . 1 . . . Parts Fused 1 | . . . . . . 1 . . . . . Data Loss (minor) 15 | . . . 1 6 2 5 . . 1 . . Data Loss (major) 5 | . . . . 2 . 2 . 1 . . . Misfires 2 | . . 1 . . 1 . . . . . . Alerts 2 | . . . . 2 . . . . . . . Weapon Failures 5 | . . . . 1 1 3 . . . . . Overload Shots . | . . . . . . . . . . . . Overflow Damage 81 | . . . 31 . . . . . 50 . . Projectiles 12 | . . . 12 . . . . . . . . Explosions 69 | . . . 19 . . . . . 50 . . Melee . | . . . . . . . . . . . . Knockbacks 24 | . 9 10 5 . . . . . . . . Impact . | . . . . . . . . . . . . Kinetic 23 | . 8 10 5 . . . . . . . . Secondary 1 | . 1 . . . . . . . . . . Self-Inflicted Damage 212 | . 101 . . . . 33 . . 78 . . Shots 7 | . 4 . . . . 1 . . 2 . . Rammed . | . . . . . . . . . . . . Targets Rammed . | . . . . . . . . . . . . Kicked . | . . . . . . . . . . . . Crushed . | . . . . . . . . . . . . Highest Temperature 407 | 198 407 99 209 230 221 192 . . 17 . 268 Average Temperature 96 | 97 156 59 81 50 69 67 . . 10 . 105 Received Heat Transfer 3124 | . 315 114 648 401 350 286 22 18 171 . 799 Effects 1 | . 1 . . . . . . . . . . Shutdowns 1 | . 1 . . . . . . . . . . Siege Activations . | . . . . . . . . . . . . Robots Corrupted 1 | . 1 . . . . . . . . . . Combat Hostiles 1 | . 1 . . . . . . . . . . Parts Fried 10 | 1 1 . . 1 1 1 . 4 1 . . Impact Corruptions . | . . . . . . . . . . . . Robots Melted 3 | . . . 1 . . . . . . . 2 Combat Hostiles 3 | . . . 1 . . . . . . . 2 Parts Melted 14 | . 1 1 2 . 1 . . . . . 9 Heat Transferred 8828 | 50 1514 1702 1794 . 50 150 . . 200 . 3368 Parts Sabotaged . | . . . . . . . . . . . . Parts Stolen . | . . . . . . . . . . . . Parts Stripped . | . . . . . . . . . . . . Power Chain Reactions 16 | 1 8 . 1 . 1 2 . . 3 . . Alert | -11 -10 -10 -8 -8 -8 -8 -7 -7 -7 -7 -7 ------- Run | Yrd Mat Sub Mat Gar Mat Gar Fac Low Low Zio Dee Peak Influence 1611 | 15 892 . 594 1572 1006 1611 1066 . . . . Initial 732 | . 8 . . 264 660 572 732 . . . . Average 746 | 3 499 . 355 1009 733 1190 897 . . . . Maximum Alert Level 5 | . 3 . 2 4 3 5 3 . . . . Low Security (%) 7 | 100 17 . 11 . . . . . . . . Level 1 14 | . 7 . 46 5 6 . . . . . . Level 2 27 | . 59 . 41 12 37 6 . . . . . Level 3 29 | . 15 . . 34 56 26 100 . . . . Level 4 21 | . . . . 47 . 64 . . . . . Level 5 . | . . . . . . 2 . . . . . High Security . | . . . . . . . . . . . . Max Security . | . . . . . . . . . . . . Squads Dispatched 27 | . 12 . 6 . 5 . 4 . . . . Investigation 18 | . 12 . 4 . . . 2 . . . . Extermination 1 | . . . . . . . 1 . . . . Reinforcement 5 | . . . 2 . 3 . . . . . . Assault 3 | . . . . . 2 . 1 . . . . Garrison . | . . . . . . . . . . . . Intercept . | . . . . . . . . . . . . Searches Triggered . | . . . . . . . . . . . . Construction Impeded . | . . . . . . . . . . . . Haulers Reinforced . | . . . . . . . . . . . . Active Scanning Responses . | . . . . . . . . . . . . Cargo Convoy Interrupts . | . . . . . . . . . . . . Stealth | -11 -10 -10 -8 -8 -8 -8 -7 -7 -7 -7 -7 --------- Run | Yrd Mat Sub Mat Gar Mat Gar Fac Low Low Zio Dee Distress Signals 7 | . . . 3 . 4 . . . . . . Communications Jammed . | . . . . . . . . . . . . Distress Signals . | . . . . . . . . . . . . Times Spotted 310 | . 41 17 40 35 34 34 13 10 27 . 59 Peak Tracking Total 38 | . 5 3 7 9 10 7 3 4 10 . 38 Tactical Retreats 14 | . 1 2 1 3 1 3 . . 3 . . Traps | -11 -10 -10 -8 -8 -8 -8 -7 -7 -7 -7 -7 ------- Run | Yrd Mat Sub Mat Gar Mat Gar Fac Low Low Zio Dee Traps Triggered 24 | . 8 3 2 3 4 4 . . . . . Indirectly . | . . . . . . . . . . . . Trap Hack Attempts . | . . . . . . . . . . . . Triggered . | . . . . . . . . . . . . Disarmed . | . . . . . . . . . . . . Reprogrammed . | . . . . . . . . . . . . Reused . | . . . . . . . . . . . . Traps Extracted . | . . . . . . . . . . . . Installed . | . . . . . . . . . . . . Triggered 2 | . . . . . . . . 1 1 . . Machines | -11 -10 -10 -8 -8 -8 -8 -7 -7 -7 -7 -7 ---------- Run | Yrd Mat Sub Mat Gar Mat Gar Fac Low Low Zio Dee Machines Disabled 27 | . 3 3 2 7 2 5 . . 2 . 3 Max in Single Turn 1 | . 1 1 1 1 1 1 . . 1 . . Garrison Relay 10 | . . . . 6 . 4 . . . . . Machines Repaired . | . . . . . . . . . . . . Machines Dismantled . | . . . . . . . . . . . . Machines Sabotaged . | . . . . . . . . . . . . Overloaded Fab Kills . | . . . . . . . . . . . . Hacking | -11 -10 -10 -8 -8 -8 -8 -7 -7 -7 -7 -7 --------- Run | Yrd Mat Sub Mat Gar Mat Gar Fac Low Low Zio Dee Machines Accessed 35 | . 10 1 5 3 7 3 5 . 1 . . Terminals 26 | . 7 . 3 3 6 3 3 . 1 . . Fabricators 2 | . . . . . . . 2 . . . . Repair Stations 1 | . 1 . . . . . . . . . . Recycling Units 3 | . 2 . 1 . . . . . . . . Scanalyzers . | . . . . . . . . . . . . Garrison Access 2 | . . . 1 . 1 . . . . . . Total Hacks 74 | . 14 4 6 4 23 4 15 . 4 . . Successful 55 | . 10 4 5 3 13 3 13 . 4 . . Failed 19 | . 4 . 1 1 10 1 2 . . . . Catastrophic 4 | . . . 1 . 3 . . . . . . Database Lockouts . | . . . . . . . . . . . . Manual 54 | . 15 . 5 . 21 . 9 . . 4 . Terminals 59 | . 11 . 4 4 22 4 10 . 4 . . Fabricators 5 | . . . . . . . 5 . . . . Repair Stations 1 | . 1 . . . . . . . . . . Recycling Units 3 | . 2 . 1 . . . . . . . . Scanalyzers . | . . . . . . . . . . . . Garrison Access 2 | . . . 1 . 1 . . . . . . Terminal Hacks 26 | . . 4 1 3 6 3 5 . 4 . . Record 8 | . . 4 . . . . . . 4 . . Robot Schematic 1 | . . . . . . . 1 . . . . Robot Analysis 5 | . . . . . 3 . 2 . . . . Open Door 1 | . . . . . . 1 . . . . . Branch Access Points 2 | . . . 1 . . . 1 . . . . Emergency Access Points 2 | . . . . 1 . 1 . . . . . Alert Level 1 | . . . . . 1 . . . . . . Unreport Threat 2 | . . . . . 2 . . . . . . Hauler Manifests 1 | . . . . . . . 1 . . . . Garrison Registry 1 | . . . . 1 . . . . . . . Security Stations 2 | . . . . 1 . 1 . . . . . Fabricator Hacks 4 | . . . . . . . 4 . . . . Load Schematic 2 | . . . . . . . 2 . . . . Build 2 | . . . . . . . 2 . . . . Repair Station Hacks . | . . . . . . . . . . . . Recycling Unit Hacks . | . . . . . . . . . . . . Scanalyzer . | . . . . . . . . . . . . Garrison Access Hacks 2 | . . . 1 . 1 . . . . . . Unlock Access 2 | . . . 1 . 1 . . . . . . Unauthorized Hacks 23 | . 10 . 3 . 6 . 4 . . . . Terminals 18 | . 7 . 2 . 6 . 3 . . . . Botnet 8 | . . . . . 5 . 3 . . . . Operators 1 | . . . . . 1 . . . . . . Sabotage 1 | . 1 . . . . . . . . . . Search 8 | . 6 . 2 . . . . . . . . Fabricators 1 | . . . . . . . 1 . . . . Prioritize 1 | . . . . . . . 1 . . . . Repair Stations 1 | . 1 . . . . . . . . . . Patch 1 | . 1 . . . . . . . . . . Recycling Units 3 | . 2 . 1 . . . . . . . . Tunnel 3 | . 2 . 1 . . . . . . . . Scanalyzers . | . . . . . . . . . . . . Garrison Access . | . . . . . . . . . . . . Data Cores Recovered 2 | . . . . . 1 . 1 . . . . Used . | . . . . . . . . . . . . Hacking Detections 16 | . 3 . 1 2 5 1 4 . . . . Full Trace Events 2 | . . . . . . . 2 . . . . Feedback Events . | . . . . . . . . . . . . Feedback Blocked . | . . . . . . . . . . . . Robot Schematics Acquired 4 | . . . . . . . 1 . . 3 . Robots Built 4 | . . . . . . . 4 . . . . Authchips . | . . . . . . . . . . . . Time 167 | . . . . . . . 167 . . . . Total Robot Build Rating 16 | . . . . . . . 16 . . . . Part Schematics Acquired 15 | . . . . . . . . . . 15 . Parts Built . | . . . . . . . . . . . . Authchips . | . . . . . . . . . . . . Time . | . . . . . . . . . . . . Total Part Build Rating . | . . . . . . . . . . . . Parts Repaired . | . . . . . . . . . . . . Time . | . . . . . . . . . . . . Parts Recycled . | . . . . . . . . . . . . Recycled Matter . | . . . . . . . . . . . . Retrieved Matter . | . . . . . . . . . . . . Retrieved Components . | . . . . . . . . . . . . Parts Scanalyzed . | . . . . . . . . . . . . Part Schematics Acquired . | . . . . . . . . . . . . Parts Damaged . | . . . . . . . . . . . . Bothacking | -11 -10 -10 -8 -8 -8 -8 -7 -7 -7 -7 -7 ------------ Run | Yrd Mat Sub Mat Gar Mat Gar Fac Low Low Zio Dee Used RIF Installer . | . . . . . . . . . . . . Robots Hacked . | . . . . . . . . . . . . Non-combat . | . . . . . . . . . . . . Combat . | . . . . . . . . . . . . Robot Hacks Applied . | . . . . . . . . . . . . Relay Couplers Released 18 | . . . . 10 . 8 . . . . . Machine Destruction 16 | . . . . 8 . 8 . . . . . Programmers 2 | . . . . 2 . . . . . . . Fabnet Peak Effective % . | . . . . . . . . . . . . Robots Rewired 9 | . . . . 5 1 1 2 . . . . Allies Hacked 1 | . . . . . . . . 1 . . . Hacks Repelled . | . . . . . . . . . . . . Allies | -11 -10 -10 -8 -8 -8 -8 -7 -7 -7 -7 -7 -------- Run | Yrd Mat Sub Mat Gar Mat Gar Fac Low Low Zio Dee Total Allies 25 | . . 3 . 5 1 3 6 1 . 4 2 Largest Group 7 | . . 3 3 5 3 2 6 7 5 4 5 Highest-Rated Group 233 | . . 57 57 89 59 56 204 233 159 105 224 Highest-Rated Ally 119 | . . 19 19 29 29 31 37 37 37 32 119 Total Orders . | . . . . . . . . . . . . Ally Attacks 228 | . . 5 48 6 20 13 21 12 52 . 51 Total Damage 6577 | . . 80 515 141 381 258 347 185 842 . 3828 Kills 43 | . . 1 6 2 2 3 2 2 11 . 14 Allies Corrupted 1 | . . . . . 1 . . . . . . Allies Melted . | . . . . . . . . . . . . Field Lobotomies 1 | . . . . . . . . . . . 1 Intel | -11 -10 -10 -8 -8 -8 -8 -7 -7 -7 -7 -7 ------- Run | Yrd Mat Sub Mat Gar Mat Gar Fac Low Low Zio Dee Robot Analysis Total 5 | . . . . . 3 . 2 . . . . Derelict Logs Recovered 8 | . . 1 . . . . . 3 3 1 . Drone Launches . | . . . . . . . . . . . . Drone Recoveries . | . . . . . . . . . . . . Exploration | -11 -10 -10 -8 -8 -8 -8 -7 -7 -7 -7 -7 ------------- Run | Yrd Mat Sub Mat Gar Mat Gar Fac Low Low Zio Dee Turns Passed 11512 | 84 841 1721 1326 1264 592 884 483 887 1555 1019 856 Spaces Moved 10097 | 68 730 1668 1008 988 423 706 410 911 1564 954 667 Core 4 | 4 . . . . . . . . . . . Treads . | . . . . . . . . . . . . Legs 8898 | . . 1267 1008 988 423 706 410 911 1564 954 667 Wheels 561 | 64 497 . . . . . . . . . . Hover 634 | . 233 401 . . . . . . . . . Flight . | . . . . . . . . . . . . Fastest Speed 50 | 50 52 52 90 90 90 90 90 90 90 90 90 Average Speed 88 | 78 71 81 90 90 90 90 90 90 90 102 95 Slowest Speed 130 | 80 130 112 110 90 90 90 90 90 90 110 100 Overloaded Moves . | . . . . . . . . . . . . Propulsion Burnouts . | . . . . . . . . . . . . Robots Hopped . | . . . . . . . . . . . . Cave-ins Triggered . | . . . . . . . . . . . . Exploration Rate (%) 71 | 6 97 78 69 91 56 86 9 98 99 85 86 Regions Visited 11 Branch Regions 5 Pre-discovered Areas 8 | . 2 2 1 . . . . 2 1 . . Known Exits Taken 3 | . . . 1 . 1 . 1 . . . . Unknown Exits Taken 6 | 1 1 1 . . . . . 1 1 1 . Scrap Searched 12 | . . 2 . . . . . 2 4 4 . Spaces Dug 2 | . . . . . . 1 . . 1 . . Terrain Destroyed 54 | 5 15 . 5 1 4 8 . . 16 . . Melee . | . . . . . . . . . . . . Projectile 14 | . . . 3 1 4 2 . . 4 . . AOE 40 | 5 15 . 2 . . 6 . . 12 . . Terrain Rammed . | . . . . . . . . . . . . Walls Destroyed . | . . . . . . . . . . . . Machines Disabled . | . . . . . . . . . . . . Actions | -11 -10 -10 -8 -8 -8 -8 -7 -7 -7 -7 -7 --------- Run | Yrd Mat Sub Mat Gar Mat Gar Fac Low Low Zio Dee Total 11758 | 81 890 1871 1257 1270 563 873 502 959 1668 991 833 Wait 515 | . 24 84 61 66 20 43 56 22 22 34 83 Move 10086 | 67 729 1667 1007 987 422 705 409 910 1563 953 667 Hop . | . . . . . . . . . . . . Pick Up 3 | . . 1 1 . . . . . . . 1 Fast Attach 68 | 7 10 4 21 4 4 3 1 4 5 1 4 Attach 2 | . . . 1 . . . . . . . 1 Detach 5 | . . 1 2 1 . . . 1 . . . Swap 14 | . 8 1 3 . . . . . 1 1 . Drop 43 | . 3 4 16 3 2 2 1 2 4 2 4 Fire 645 | 7 76 91 92 111 75 78 22 16 48 . 29 Melee . | . . . . . . . . . . . . Ram . | . . . . . . . . . . . . Kick . | . . . . . . . . . . . . Crush . | . . . . . . . . . . . . Escape Stasis 15 | . . . . 10 . 5 . . . . . Rewire 65 | . . . . 42 7 11 3 . 2 . . Trap . | . . . . . . . . . . . . Miscellaneous 297 | . 40 18 53 46 33 26 10 4 23 . 44 Route ------- -11/Scrapyard -10/Materials (discovered 5 exits: [*Mat x3] / [*Min] / *Sub) -10/Subcaves (discovered 3 exits: *Mat x2 / [*Rec]) -8/Materials (discovered 4 exits: *Fac x3 / Gar) -8/Garrison (discovered 3 exits: *Mat x3) -8/Materials -8/Garrison (discovered 3 exits: *Fac x3) -7/Factory (discovered 3 exits: [*Fac] / *Low x2) -7/Lower Caves -7/Lower Caves (discovered 2 exits: [*Fac] / *Zio) -7/Zion (discovered 2 exits: [*Dee] / [*Pro]) -7/Deep Caves (discovered 1 exit: [*Pro]) History --------- Turn | Location | Event 1 | -11/Scrapyard | Upgraded with Power slot (x1) 1 | -11/Scrapyard | Upgraded with Propulsion slot (x1) 1 | -11/Scrapyard | Upgraded with Utility slot (x1) 1 | -11/Scrapyard | Upgraded with Weapon slot (x1) 2 | -11/Scrapyard | Discovered new exit (range 16) 85 | -11/Scrapyard | Entered Materials 97 | -10/Materials | Discovered new exit (range 16) 203 | -10/Materials | Discovered new exit (range 6) 289 | -10/Materials | Reached level 2 305 | -10/Materials | Build established: Mutant 368 | -10/Materials | Destroyed 10 combat bots 425 | -10/Materials | Discovered new exit (range 4) 525 | -10/Materials | Reached level 3 681 | -10/Materials | Upgraded with Propulsion slot (x1) 681 | -10/Materials | Upgraded with Utility slot (x1) 765 | -10/Materials | Discovered new exit (range 4) 812 | -10/Materials | Destroyed 8 combat bots 836 | -10/Materials | Reached level 4 914 | -10/Materials | Discovered new exit (range 13) 926 | -10/Materials | Entered Subcaves 940 | -10/Subcaves | Learned location of Zion (-7) 940 | -10/Subcaves | Met a Zionite searching for "candidates" 959 | -10/Subcaves | Visited 4L-MR0's lab 965 | -10/Subcaves | Found Prototype Power Core 965 | -10/Subcaves | Identified Meta Core 966 | -10/Subcaves | Attached Meta Core, gained temporary slots: Propulsion, Utility, Weapon 986 | -10/Subcaves | Build established: Scavenger-Mutant 1224 | -10/Subcaves | Reached level 5 1233 | -10/Subcaves | Discovered new exit (range 11) 1254 | -10/Subcaves | A Subdweller sparked back to life 1254 | -10/Subcaves | A Subdweller sparked back to life 1254 | -10/Subcaves | A Subdweller sparked back to life 1291 | -10/Subcaves | Upgraded with Utility slot (x1) 1300 | -10/Subcaves | Found Prototype Leg 1300 | -10/Subcaves | Identified Arachnoskeleton 1301 | -10/Subcaves | Attached Arachnoskeleton, gained temporary slots: Propulsion x3 1435 | -10/Subcaves | Core integrity fell below 50% 1465 | -10/Subcaves | Discovered new exit (range 9) 1498 | -10/Subcaves | Discovered new exit (range 8) 1606 | -10/Subcaves | Build established: Mutant 1809 | -10/Subcaves | Visited triangular shrine 1815 | -10/Subcaves | Found Prototype Device 1815 | -10/Subcaves | Identified V3-11A's Pendant 1820 | -10/Subcaves | Befriended Subdweller 2095 | -10/Subcaves | Befriended Subdweller 2100 | -10/Subcaves | Disturbed a concealed Subdweller 2100 | -10/Subcaves | Befriended Subdweller 2416 | -10/Subcaves | Learned Materials stockpile data 2425 | -10/Subcaves | A swath of the cavern ceiling suddenly collapsed 2460 | -10/Subcaves | Visited Clippyterm 2463 | -10/Subcaves | Learned location of Section 7 (-3) 2463 | -10/Subcaves | Learned Factory emergency access door positions 2647 | -10/Subcaves | Entered Materials 2647 | -8/Materials | Accompanied by 3 allies 2649 | -8/Materials | Reached level 6 2694 | -8/Materials | Reached level 7 2744 | -8/Materials | Discovered new exit (range 10) 2777 | -8/Materials | Core integrity fell below 50% 2880 | -8/Materials | Reached level 8 2964 | -8/Materials | Upgraded with Utility slot (x2) 3000 | -8/Materials | Discovered new exit (range 16) 3344 | -8/Materials | Reached level 9 3545 | -8/Materials | Upgraded with Utility slot (x1) 3712 | -8/Materials | Discovered new exit (range 4) 3858 | -8/Materials | Build established: Scavenger-Mutant 3889 | -8/Materials | Reached level 10 3902 | -8/Materials | Upgraded with Utility slot (x1) 3972 | -8/Materials | Identified exit to Garrison 3973 | -8/Materials | Entered Garrison 4021 | -8/Garrison | Triggered checkpoint 4026 | -8/Garrison | Garrison Relay disabled 4041 | -8/Garrison | Reached level 11 4156 | -8/Garrison | Triggered checkpoint 4158 | -8/Garrison | Triggered checkpoint 4238 | -8/Garrison | Destroyed 11 combat bots 4361 | -8/Garrison | Triggered checkpoint 4365 | -8/Garrison | Garrison Relay disabled 4390 | -8/Garrison | Build established: Mutant 4409 | -8/Garrison | Spotted B-75 Beast 4452 | -8/Garrison | Learned Materials security intel 4467 | -8/Garrison | Triggered checkpoint 4478 | -8/Garrison | Reached level 12 4541 | -8/Garrison | Garrison Relay disabled 4551 | -8/Garrison | Triggered checkpoint 4625 | -8/Garrison | Discovered new exit (range 10) 4755 | -8/Garrison | Discovered new exit (range 11) 4791 | -8/Garrison | Triggered checkpoint 4795 | -8/Garrison | Triggered checkpoint 4845 | -8/Garrison | Garrison Relay disabled 4855 | -8/Garrison | Discovered new exit (range 77) 4855 | -8/Garrison | Discovered new exit (range 12) 4855 | -8/Garrison | Discovered new exit (range 68) 4985 | -8/Garrison | Triggered checkpoint 5035 | -8/Garrison | Garrison Relay disabled 5036 | -8/Garrison | Garrison Relay disabled 5237 | -8/Garrison | Entered Materials 5237 | -8/Materials | Accompanied by 3 allies 5243 | -8/Materials | Upgraded with Utility slot (x1) 5322 | -8/Materials | Reached level 13 5531 | -8/Materials | Build established: Hacker-Mutant 5561 | -8/Materials | Lost 3 allies 5601 | -8/Materials | Met 7R-MNS 5637 | -8/Materials | First assault squad dispatched 5759 | -8/Materials | Destroyed 10 combat bots 5828 | -8/Materials | Identified exit to Garrison 5829 | -8/Materials | Entered Garrison 5872 | -8/Garrison | Garrison Relay disabled 5873 | -8/Garrison | Triggered checkpoint 5897 | -8/Garrison | Learned Factory security intel 6003 | -8/Garrison | Triggered checkpoint 6021 | -8/Garrison | Reached level 14 6075 | -8/Garrison | Triggered checkpoint 6126 | -8/Garrison | Garrison Relay disabled 6145 | -8/Garrison | Discovered new exit (range 15) 6174 | -8/Garrison | Triggered checkpoint 6319 | -8/Garrison | Garrison Relay disabled 6351 | -8/Garrison | Discovered new exit (range 14) 6355 | -8/Garrison | Triggered checkpoint 6395 | -8/Garrison | Rescued a captive Derelict 6397 | -8/Garrison | Rescued a captive Derelict 6469 | -8/Garrison | Garrison Relay disabled 6488 | -8/Garrison | Discovered new exit (range 15) 6533 | -8/Garrison | Triggered checkpoint 6683 | -8/Garrison | Triggered checkpoint 6713 | -8/Garrison | Entered Factory 6713 | -7/Factory | Accompanied by 2 allies 6715 | -7/Factory | Reached level 15 6741 | -7/Factory | Discovered new exit (range 14) 6869 | -7/Factory | Discovered new exit (range 11) 6967 | -7/Factory | Identified exit to Lower Caves 7047 | -7/Factory | Fabricated P-60 Hacker? 7113 | -7/Factory | First assault squad dispatched 7127 | -7/Factory | Fabricated P-60 Hacker (x2) 7196 | -7/Factory | Entered Lower Caves 7196 | -7/Lower Caves | Accompanied by 6 allies 7202 | -7/Lower Caves | Met a Warlord Commander 7203 | -7/Lower Caves | Learned location of Warlord (-5) 7203 | -7/Lower Caves | Learned Factory security intel 7204 | -7/Lower Caves | Warlord Commander delivered Encrypted Comm Array 7206 | -7/Lower Caves | Upgraded with Utility slot (x1) 7206 | -7/Lower Caves | Found Encrypted Comm Array 7300 | -7/Lower Caves | Hacker 4d assimilated hostile G-50 Soldier 7375 | -7/Lower Caves | Reached level 16 7747 | -7/Lower Caves | Discovered new exit (range 15) 8083 | -7/Lower Caves | Entered another Lower Caves area 8083 | -7/Lower Caves | Accompanied by 5 allies 8093 | -7/Lower Caves | Discovered new exit (range 8) 8097 | -7/Lower Caves | Attracted the attention of an 0b10 checkpoint 8349 | -7/Lower Caves | Learned location of 1 exit from Factory 8532 | -7/Lower Caves | Discovered new exit (range 9) 8535 | -7/Lower Caves | Attracted the attention of an 0b10 base 8599 | -7/Lower Caves | Lost 4 allies 8633 | -7/Lower Caves | Learned Factory garrison access intel 8652 | -7/Lower Caves | Learned Armory garrison access intel 9638 | -7/Lower Caves | Entered Zion 9675 | -7/Zion | System corruption cleaned by Quarantine Array 9713 | -7/Zion | Learned Factory security intel 9745 | -7/Zion | Visited the Megawrench Repair Shop 9747 | -7/Zion | Discovered new exit (range 12) 9832 | -7/Zion | Upgraded with Weapon slot (x1) 9835 | -7/Zion | Found Prototype Energy Gun 9835 | -7/Zion | Identified Storm Laser 9864 | -7/Zion | Learned Factory emergency access door positions 9902 | -7/Zion | Gained Derelict followers 10069 | -7/Zion | Acquired unknown access codes intercepted by a Zionite 10141 | -7/Zion | Build established: Hacker-Gunner 10612 | -7/Zion | Opened final containment barrier to the Deep Caves 10628 | -7/Zion | Discovered new exit (range 3) 10628 | -7/Zion | Saw the warning signs outside the Deep Caves entrance 10657 | -7/Zion | Entered Deep Caves 10657 | -7/Deep Caves | Accompanied by 4 allies 10659 | -7/Deep Caves | Reached level 17 10659 | -7/Deep Caves | Met 5H-AD0 10844 | -7/Deep Caves | Z-Facility disabled 10861 | -7/Deep Caves | Attacked by Z-Imprinter 10875 | -7/Deep Caves | Destroyed Z-Imprinter 10911 | -7/Deep Caves | Found Prototype Protection 10911 | -7/Deep Caves | Identified Zio. Weapon Casing 11130 | -7/Deep Caves | Discovered new exit (range 8) 11330 | -7/Deep Caves | Spotted AG-64064 11361 | -7/Deep Caves | Destroyed AG-64064 11362 | -7/Deep Caves | Core integrity fell below 50% 11409 | -7/Deep Caves | Spotted AG-11253 11437 | -7/Deep Caves | Destroyed AG-11253 11488 | -7/Deep Caves | Triggered Deep Caves wall 11489 | -7/Deep Caves | Found Prototype Special Weapon 11491 | -7/Deep Caves | Identified Field Lobotomy Kit 11495 | -7/Deep Caves | Spotted AS-57417 11504 | -7/Deep Caves | Assimilated AS-57417 with FLK Orb 11508 | -7/Deep Caves | Core integrity fell below 20% 11513 | -7/Deep Caves | Destroyed by as-68440 with Assembled Rifle Last Messages --------------- 11497_ as-08136 shuts down. 11499_ VT-KLG(h) destroyed. 11500_ Penetrated by Slug. 11501_ as-95291 suffers critical hit (Destroy). 11501_ as-30717 destroyed. 11503_ Penetrated by Slug. 11504_ AS-57417 assimilated. 11504_ Knocked back. 11505_ as-08852 destroyed. 11505_ Penetrated by Slug. 11507_ as-13606 released from Mobile Assembly Unit. 11507_ as-13606 sneak attacks. 11507_ Penetrated by Slug. 11508_ Slug penetrates AS-57417. 11509_ as-86938 suffers critical hit (Destroy). 11509_ as-86938 destroyed. 11511_ Slug penetrates Wall. 11512_ as-65876 suffers critical hit (Destroy). 11512_ as-65876 destroyed. Map ----- +----------------------------------------------------+ | ??????"" # # #??????????## | | ??????" # #?##???????# ####### | | ??????"" # #? #???????# ###?????# | | ??????" #? #???????# ####??????## | | ??????""" #? #???????# ##?????????# | | ??????" [ ## #???????# #???##?????# | | ??????" # #####???# ##?# ##????# | | ??????" #??## ## #????# | | ??????# ###?## #????# | | ??????"" ##???# ##????## | | ???????" ###????# #??????## | | ???????" %= #????# ##??????## | | ???????" * #####???# ##????#### | | ??????"" ### #???## #???### | | ?????## = ;## ####?# ##??# %% | | ????" a= # ### #??# # | | ??? = a ]% a ;#### ##?# # | | ?? a a aa a #### "### | | ?? a a a a l ## "# | | ?? a a aa ##### ## | | ??? A ! aaaa ##?## ## | | ???? = aaaa#?# % ### | | ????? = !! aa a #?# ### %##?? | | ?????? = ! a#?## ### ##??? | | ??????# ! a#??## ##??? | | ???????" b = @#???## #### | | ???????" = ! !! [ #????# % | | ???????" = = #????###### | | ???????" ##????????#### ##" | | ???????" #???????????# ####### | | ??????# [ a #???????????# #?????# | | ??????" [ l ! h #???????##### #?????# | | ??????" %! ! ######### ## #?????# | | ??????" =%% ##???## | | ??????""" [ ! !! * ##### | | ??????" [ /% | | ???????" s #### ### | | ??????" ### #####?#### | | ???????" !% ### ###????????## | | ??????" # # #?# ##???????????###### | | ??????" #### #"%## ##?## #?????????????????? | | ??????""" ##???# ## ####???###?????????????????? | | ???????? ??????##?# #??????????????????????????? | | ????????????????????###??????????????????????????? | | | | | | | | | | | | | +----------------------------------------------------+ Best States ------------- Heat Dissipation 99 Energy Generation 49 Energy Capacity 400 Matter Stores 300 Matter Capacity 300 Sight Range 16 Terrain Scan Range 16 Terrain Scan Density 510 Additional Mass Support 9 Armor Coverage 950 Resistance: KI 25 Resistance: TH 25 Resistance: EX 20 Resistance: EM 20 Resistance: I 20 Resistance: S 20 Resistance: P 20 Weapon Shielding 100 Weapon Cycling 30 Evasion (%) 57 Core Analysis 6 Armor Integrity Analysis 30 Offensive Hacking 25 Defensive Hacking 5 Item Schematics ----------------- Imp. Trap Extractor | -7/Zion | Archive Nuclear Pulse Thruster | -7/Zion | Archive Proton Missile Launcher | -7/Zion | Archive Phase Cannon | -7/Zion | Archive Arm. Huge Wheel | -7/Zion | Archive Lyr. Medium Armor Plating | -7/Zion | Archive Weapon Cycler | -7/Zion | Archive Imp. Weapon Cycler | -7/Zion | Archive Imp. Recalibrator | -7/Zion | Archive Flak Gun | -7/Zion | Archive Adv. Heat Sink | -7/Zion | Archive Kinecellerator | -7/Zion | Archive Magnetic Acceleration Cannon | -7/Zion | Archive Power Sword | -7/Zion | Archive Imp. Field Recycling Unit | -7/Zion | Archive Robot Schematics ------------------ P-60 Hacker | -7/Factory | Hacked R-06 Scavenger | -7/Zion | Archive W-25 Informer | -7/Zion | Archive X-62 Marksman | -7/Zion | Archive Fabricated ------------ P-60 Hacker | x2 | -7/Factory P-60 Hacker | x2 | -7/Factory Alien Tech Used ----------------- None Achievements -------------- None Challenges ------------ None RPGLIKE | -11 -10 -10 -8 -8 -8 -8 -7 -7 -7 -7 -7 --------- Run | Yrd Mat Sub Mat Gar Mat Gar Fac Low Low Zio Dee Levels Raised 16 | . 3 1 5 2 1 1 1 1 . . 1 XP Earned 28514 | 4000 4779 1448 7529 4019 1267 1186 1788 824 971 170 533 XP Spent 27985 | 2000 4760 2550 7400 750 3000 . . 3900 650 800 2175 Upgrades 46 | 4 14 7 4 1 3 . . 2 5 1 5 Power Slot 1 | 1 . . . . . . . . . . . Propulsion Slot 2 | 1 1 . . . . . . . . . . Utility Slot 9 | 1 1 1 4 . 1 . . 1 . . . Weapon Slot 2 | 1 . . . . . . . . . 1 . Core Integrity 1 | . . . . . . . . . . . 1 Heat Dissipation 8 | . 8 . . . . . . . . . . Energy Generation 2 | . . . . . . . . . . . 2 Inventory Capacity 4 | . . 2 . 1 . . . 1 . . . Terrain Scan Density 5 | . . . . . . . . . 5 . . Ranged Accuracy 5 | . 4 . . . . . . . . . 1 Hack Attack % 1 | . . . . . 1 . . . . . . Hack Defense % 1 | . . . . . 1 . . . . . . KI Resistance % 1 | . . 1 . . . . . . . . . TH Resistance % 1 | . . 1 . . . . . . . . . KI Damage % 1 | . . 1 . . . . . . . . . TH Damage % 2 | . . 1 . . . . . . . . 1 Protomatter Created 3328 | . 495 118 388 624 529 333 109 137 221 . 374 Integrity Restored 5614 | . 689 282 1059 871 634 463 148 58 435 . 975 Core 3907 | . 435 282 733 499 370 277 62 29 272 . 948 Parts 1707 | . 254 . 326 372 264 186 86 29 163 . 27 Protomatter Decayed 1827 | . 126 . 138 319 399 72 182 153 374 . 64 Game ------ Seed LightMiningLoader Manual? 0 Play Time 01:44:32 Cumulative 246.4 hours Start 2025.03.14 @ 06:39:48 End 2025.03.14 @ 08:51:28 Sessions 1 Manual Loads 0 Difficulty Adventurer Special Mode Winter2019/RPGLIKE Game No. 106 Rogue 0 Adventurer 106 Explorer 0 Win Type - Total 10 Types 2/1/3/2/1/0/0/0/1 Lore% 80 Gallery% 73 Achievement% 77 Wizard Run 0 Options --------- Layout 2 ASCII 0 Keyboard 0 Movement Numpad Keybinds 0 Fullscreen 2 Font 24/Smallcaps Map View 50x44 Zoom Use 0% Tactical HUD 1 Map Filters NONE Filters NONE Steam 1 RUN: 7456abbb-8d29-42f7-b154-bfc65439379e